bitfinex/quotes_BTCUSD_20241023
["timestamp","ask_amount","ask_price","bid_price","bid_amount"]
[1729694614756,0.000824,66766.0,66765.0,0.81633235]
[1729694616065,0.000824,66766.0,66765.0,0.82434277]
[1729694617157,0.000824,66766.0,66765.0,0.84534277]
[1729694617385,0.000824,66766.0,66765.0,0.84734277]
[1729694621105,0.22547745,66788.0,66780.0,0.159745]
[1729694621323,0.20199775,66781.0,66780.0,0.82089287]
[1729694621584,0.20199775,66781.0,66780.0,0.81789835]
[1729694621585,0.21012166,66781.0,66780.0,0.81789835]
[1729694621802,0.22547745,66788.0,66787.0,0.254729]
[1729694622016,0.22547745,66788.0,66787.0,0.52060758]
[1729694622228,0.00813972,66788.0,66787.0,0.52060758]
[1729694622442,0.000824,66789.0,66788.0,0.154727]
[1729694622655,0.000824,66789.0,66788.0,0.30523081]
[1729694623329,0.000824,66789.0,66788.0,0.3082249]
[1729694623761,0.000824,66789.0,66788.0,0.30523081]
[1729694623974,0.000824,66789.0,66788.0,0.31105079]
[1729694625270,0.000824,66789.0,66788.0,0.159727]
[1729694625900,0.000824,66789.0,66788.0,0.154727]
[1729694626122,0.000824,66789.0,66785.0,0.005]
[1729694626123,0.15055,66789.0,66785.0,0.005]
[1729694626332,0.000824,66789.0,66781.0,0.005]
[1729694626540,0.0081474,66788.0,66785.0,0.149733]
[1729694626789,0.1578754,66788.0,66784.0,0.159735]
[1729694627026,0.1578754,66788.0,66779.0,0.299492]
[1729694627027,0.377262,66787.0,66780.0,0.01]
[1729694627247,0.149733,66786.0,66782.0,0.149739]
[1729694627463,0.00815315,66786.0,66781.0,0.299486]
[1729694627680,0.149734,66785.0,66780.0,0.01]
[1729694627891,0.00815764,66785.0,66780.0,0.01]
[1729694628116,0.377261,66787.0,66780.0,0.01]
[1729694628330,0.14974,66783.0,66777.0,0.299503]
[1729694628530,0.14974,66783.0,66778.0,0.299499]
[1729694628740,0.00224582,66785.0,66777.0,0.299503]
[1729694628741,0.00816756,66782.0,66777.0,0.299504]
[1729694628954,0.00816756,66782.0,66780.0,0.149744]
[1729694629178,0.00224582,66785.0,66773.0,0.299519]
[1729694629411,0.149745,66780.0,66771.0,0.149763]
[1729694629630,0.149759,66774.0,66771.0,0.149765]
[1729694629850,0.17223288,66778.0,66772.0,0.149762]
[1729694630058,0.149758,66775.0,66771.0,0.154765]
[1729694630273,0.149758,66775.0,66771.0,0.149765]
[1729694630485,0.149757,66775.0,66772.0,0.149762]
[1729694630718,0.299499,66778.0,66772.0,0.299526]
[1729694630719,0.00816073,66774.0,66772.0,0.299526]
[1729694630934,0.00816073,66774.0,66773.0,0.14976]
[1729694631153,0.149753,66777.0,66773.0,0.14976]
[1729694631374,0.00816073,66774.0,66773.0,0.149761]
[1729694631588,0.14975,66778.0,66774.0,0.149757]
[1729694631825,0.45652445,66779.0,66775.0,0.149754]
[1729694632512,0.231047,66779.0,66775.0,0.149754]
[1729694633142,0.0813,66779.0,66774.0,0.299516]
[1729694633371,0.149757,66775.0,66772.0,0.149763]
[1729694633583,0.149749,66778.0,66771.0,0.304529]
[1729694633818,0.299508,66776.0,66766.0,0.005]
[1729694634032,0.299508,66776.0,66766.0,0.01]
[1729694634033,0.149763,66772.0,66766.0,0.01]
[1729694634280,0.299517,66774.0,66768.0,0.14977]
[1729694634563,0.299517,66774.0,66766.0,0.01]
[1729694634775,0.149761,66773.0,66770.0,0.149766]
[1729694635193,0.149761,66773.0,66766.0,0.01]
[1729694635194,0.149761,66773.0,66769.0,0.149769]
[1729694635418,0.149763,66772.0,66768.0,0.14977]
[1729694635627,0.149763,66772.0,66761.0,0.299575]
[1729694635628,0.0765,66769.0,66762.0,0.005]
[1729694635844,0.299544,66768.0,66761.0,0.149787]
[1729694636061,0.39850288,66769.0,66765.0,0.149777]
[1729694636276,0.149773,66768.0,66764.0,0.14978]
[1729694636488,0.14978,66765.0,66761.0,0.149787]
[1729694636674,0.24873288,66769.0,66762.0,0.005]
[1729694636930,0.149773,66768.0,66764.0,0.14978]
[1729694637143,0.149773,66768.0,66765.0,0.149778]
[1729694637344,0.24873288,66769.0,66763.0,0.299567]
[1729694637345,0.226271,66769.0,66764.0,0.449343]
[1729694637557,0.226271,66769.0,66765.0,0.149777]
[1729694637770,0.00809267,66768.0,66765.0,0.149777]
[1729694638242,0.01033908,66768.0,66763.0,0.299567]
[1729694638469,0.01033908,66768.0,66765.0,0.149778]
[1729694638908,0.01033908,66768.0,66764.0,0.149779]
[1729694638909,0.16011208,66768.0,66764.0,0.149779]
[1729694639119,0.16011208,66768.0,66763.0,0.299567]
[1729694639330,0.16011208,66768.0,66765.0,0.149778]
[1729694640640,0.16011208,66768.0,66764.0,0.14978]
[1729694641805,0.00809267,66768.0,66765.0,0.149777]
[1729694642036,0.00809267,66768.0,66762.0,0.005]
[1729694642216,0.00809267,66768.0,66766.0,0.149776]
[1729694642484,0.00809267,66768.0,66763.0,0.304566]
[1729694642694,0.16011307,66768.0,66764.0,0.149781]
[1729694642897,0.01033907,66768.0,66763.0,0.304566]
[1729694643120,0.01033907,66768.0,66764.0,0.299561]
[1729694643513,0.16011107,66768.0,66765.0,0.149778]
[1729694643742,0.01033907,66768.0,66764.0,0.299561]
[1729694643955,0.01033907,66768.0,66767.0,0.149774]
[1729694644606,0.00809267,66768.0,66767.0,0.154774]
[1729694644833,0.00809267,66768.0,66767.0,0.159774]
[1729694645048,0.14975,66778.0,66774.0,0.149757]
[1729694645261,0.22547745,66779.0,66774.0,0.005]
[1729694645463,0.00799902,66777.0,66774.0,0.154758]
[1729694645681,0.15775202,66777.0,66774.0,0.154758]
[1729694645940,0.00799902,66776.0,66769.0,0.005]
[1729694646156,0.1802319,66776.0,66768.0,0.005]
[1729694646365,0.149762,66773.0,66768.0,0.154771]
[1729694646578,0.149768,66770.0,66768.0,0.005]
[1729694646802,0.299517,66774.0,66768.0,0.15477]
[1729694647010,0.00799902,66769.0,66768.0,0.005]
[1729694647252,0.149765,66771.0,66768.0,0.005]
[1729694647470,0.149772,66768.0,66764.0,0.005]
[1729694647684,0.079,66770.0,66764.0,0.005]
[1729694647898,0.449318,66768.0,66764.0,0.005]
[1729694648087,0.00799902,66767.0,66764.0,0.005]
[1729694648351,0.28244444,66769.0,66760.0,0.005]
[1729694648567,0.149789,66761.0,66759.0,0.005]
[1729694648804,0.149784,66763.0,66759.0,0.154791]
[1729694649021,0.00799902,66760.0,66759.0,0.005]
[1729694649221,0.149786,66762.0,66759.0,0.005]
[1729694649426,0.00799902,66760.0,66759.0,0.005]
[1729694649636,0.449348,66764.0,66759.0,0.159792]
[1729694649817,0.00799902,66760.0,66759.0,0.159792]
[1729694650062,0.22547745,66765.0,66760.0,0.154789]
[1729694650271,0.149779,66765.0,66761.0,0.149787]
[1729694651310,0.299549,66767.0,66761.0,0.149787]
[1729694651515,0.149779,66765.0,66761.0,0.149787]
[1729694652745,0.00799737,66764.0,66761.0,0.149787]
[1729694652955,0.00799737,66764.0,66761.0,0.149788]
[1729694654685,0.16095264,66766.0,66761.0,0.149788]
[1729694654906,0.00663148,66765.0,66761.0,0.149788]
[1729694656009,0.15641048,66765.0,66761.0,0.149788]
[1729694656222,0.01117967,66764.0,66761.0,0.149788]
[1729694656439,0.15641048,66765.0,66761.0,0.149788]
[1729694656645,0.01117967,66765.0,66761.0,0.149786]
[1729694656857,0.00663148,66764.0,66760.0,0.403579]
[1729694657318,0.01117967,66763.0,66762.0,0.149785]
[1729694657753,0.00663148,66763.0,66762.0,0.149785]
[1729694658182,0.01117967,66763.0,66762.0,0.149785]
[1729694658398,0.01781115,66763.0,66760.0,0.253789]
[1729694658613,0.01781115,66763.0,66759.0,0.005]
[1729694658614,0.16096567,66762.0,66759.0,0.005]
[1729694658898,0.17223288,66760.0,66755.0,0.005]
[1729694659144,0.017825,66759.0,66755.0,0.005]
[1729694659387,0.01117967,66758.0,66755.0,0.005]
[1729694659646,0.01117967,66757.0,66756.0,0.149797]
[1729694660095,0.017825,66757.0,66756.0,0.149797]
[1729694660546,0.017825,66757.0,66756.0,0.149799]
[1729694662329,0.00664533,66757.0,66756.0,0.149799]
[1729694662556,0.01120646,66757.0,66756.0,0.149799]
[1729694662768,0.01785179,66757.0,66755.0,0.005]
[1729694662988,0.00664533,66757.0,66756.0,0.149799]
[1729694663200,0.0178515,66757.0,66756.0,0.149799]
[1729694663401,0.01120617,66757.0,66756.0,0.149799]
[1729694663610,0.0178515,66757.0,66756.0,0.149799]
[1729694665350,0.01120617,66757.0,66756.0,0.154799]
[1729694665983,0.149783,66763.0,66759.0,0.14979]
[1729694666196,0.01121353,66762.0,66759.0,0.14979]
[1729694666425,0.01121353,66761.0,66759.0,0.14979]
[1729694666632,0.01121353,66760.0,66759.0,0.14979]
[1729694667053,0.0178519,66760.0,66759.0,0.14979]
[1729694669344,0.0178519,66760.0,66758.0,0.149794]
[1729694669560,0.00663837,66760.0,66759.0,0.149792]
[1729694669769,0.01785116,66760.0,66759.0,0.149792]
[1729694669984,0.01121279,66760.0,66759.0,0.149792]
[1729694670205,0.01785116,66760.0,66759.0,0.149792]
[1729694671043,0.16764216,66760.0,66757.0,0.149794]
[1729694671259,0.01121279,66759.0,66758.0,0.149794]
[1729694671909,0.01121279,66759.0,66756.0,0.304597]
[1729694671910,0.01785116,66759.0,66756.0,0.304597]
[1729694672115,0.01785116,66759.0,66757.0,0.149795]
[1729694672116,0.01121279,66758.0,66757.0,0.149795]
[1729694672577,0.01785116,66758.0,66757.0,0.149795]
[1729694673065,0.00663837,66758.0,66757.0,0.149795]
[1729694673294,0.01785133,66758.0,66757.0,0.149795]
[1729694673515,0.06253951,66758.0,66757.0,0.149795]
[1729694674414,0.01785133,66758.0,66757.0,0.149795]
[1729694675353,0.06267436,66758.0,66757.0,0.149795]
[1729694675600,0.01785133,66758.0,66757.0,0.149795]
[1729694676345,0.01785133,66758.0,66757.0,0.154795]
[1729694676686,0.08509743,66758.0,66757.0,0.154795]
[1729694677353,0.08509743,66758.0,66757.0,0.230495]
[1729694677616,0.08509743,66758.0,66757.0,0.326795]
[1729694677852,0.06269521,66758.0,66757.0,0.326795]
[1729694678096,0.01777182,66758.0,66757.0,0.326795]
[1729694679569,0.0626157,66758.0,66757.0,0.326795]
[1729694680588,0.06263443,66758.0,66757.0,0.326795]
[1729694683764,0.05142147,66758.0,66757.0,0.43712935]
[1729694683991,0.06264684,66758.0,66757.0,0.43712935]
[1729694684526,0.01778423,66758.0,66757.0,0.43712935]
[1729694685557,0.01778423,66758.0,66757.0,0.43877735]
[1729694685960,0.01778423,66758.0,66757.0,0.44377735]
[1729694686813,0.01778423,66758.0,66757.0,0.333443]
[1729694687678,0.01778235,66758.0,66757.0,0.328443]
[1729694687895,0.00655886,66758.0,66757.0,0.257743]
[1729694688149,0.01778235,66758.0,66757.0,0.257743]
[1729694691474,0.00655886,66758.0,66757.0,0.257743]
[1729694691687,0.08506918,66758.0,66757.0,0.257743]
[1729694692617,0.01778295,66758.0,66757.0,0.257743]
[1729694696742,0.01122409,66758.0,66757.0,0.257743]
[1729694697186,0.01785074,66758.0,66757.0,0.257743]
[1729694697650,0.18352903,66758.0,66757.0,0.257743]
[1729694697860,0.18435303,66758.0,66757.0,0.257743]
[1729694699720,0.27411371,66758.0,66757.0,0.257743]
[1729694700395,0.18435303,66758.0,66757.0,0.257743]
[1729694700878,0.27411371,66758.0,66757.0,0.257743]
[1729694701844,0.18435303,66758.0,66757.0,0.257743]
[1729694702304,1.24255303,66758.0,66757.0,0.257743]
[1729694702733,1.33231371,66758.0,66757.0,0.257743]
[1729694703166,1.24255303,66758.0,66757.0,0.257743]
[1729694703454,1.33231371,66758.0,66757.0,0.257743]
[1729694703637,1.33231371,66758.0,66757.0,0.334043]
[1729694703638,1.24255303,66758.0,66757.0,0.334043]
[1729694703874,1.14421579,66758.0,66757.0,0.334043]
[1729694704093,1.07687474,66758.0,66757.0,0.334043]
[1729694704309,1.1217693,66758.0,66757.0,0.334043]
[1729694704527,1.1217693,66758.0,66757.0,0.34002053]
[1729694705945,1.1217693,66758.0,66757.0,0.59552434]
[1729694705946,1.06565065,66758.0,66757.0,0.59552434]
[1729694710235,1.06565065,66758.0,66757.0,0.434043]
[1729694710481,1.06565065,66758.0,66757.0,0.156443]
[1729694710482,1.07686081,66758.0,66757.0,0.156443]
[1729694710706,1.14420186,66758.0,66757.0,0.156443]
[1729694710936,1.07686081,66758.0,66757.0,0.156443]
[1729694711155,1.07686081,66758.0,66757.0,0.161443]
[1729694711365,1.24235878,66758.0,66757.0,0.161443]
[1729694711577,1.14411254,66758.0,66757.0,0.161443]
[1729694712973,1.14411168,66758.0,66757.0,0.161443]
[1729694713398,1.07685995,66758.0,66757.0,0.161443]
[1729694713616,1.12169659,66758.0,66757.0,0.161443]
[1729694713837,1.07685995,66758.0,66757.0,0.161443]
[1729694714052,1.07685995,66758.0,66757.0,0.59394262]
[1729694714053,1.06565065,66758.0,66757.0,0.59394262]
[1729694714272,1.06565065,66758.0,66757.0,0.60094681]
[1729694714273,1.059024,66758.0,66757.0,0.60094681]
[1729694715378,1.059024,66758.0,66757.0,0.60694666]
[1729694715601,1.059024,66758.0,66757.0,0.60894666]
[1729694716500,1.059024,66758.0,66757.0,0.97659642]
[1729694716738,1.059024,66758.0,66757.0,0.97459642]
[1729694717656,1.059024,66758.0,66757.0,0.97659642]
[1729694717890,1.059024,66758.0,66757.0,0.80227154]
[1729694718132,1.059024,66758.0,66757.0,0.97459642]
[1729694719327,1.059024,66758.0,66757.0,0.80227154]
[1729694719770,1.059024,66758.0,66757.0,0.77927154]
[1729694720005,1.059024,66758.0,66757.0,0.43976773]
[1729694720221,1.059024,66758.0,66757.0,0.161445]
[1729694723068,1.059024,66758.0,66757.0,0.156445]
[1729694723332,1.059024,66758.0,66757.0,0.161445]
[1729694728634,1.059024,66758.0,66757.0,0.48514881]
[1729694728869,1.059024,66758.0,66757.0,0.49111196]
[1729694732304,1.059024,66758.0,66757.0,0.59111196]
[1729694740546,1.059024,66758.0,66757.0,0.156445]
[1729694740801,1.059024,66758.0,66757.0,0.161445]
[1729694741858,1.059024,66758.0,66757.0,2.961445]
[1729694745261,1.05894449,66758.0,66757.0,2.961445]
[1729694750237,1.05894449,66758.0,66757.0,2.806648]
[1729694750502,1.10378968,66758.0,66757.0,2.806648]
[1729694750773,1.05894449,66758.0,66757.0,2.806648]
[1729694751508,1.05894449,66758.0,66757.0,2.956445]
[1729694752228,1.12618717,66758.0,66757.0,2.956445]
[1729694752493,1.05894449,66758.0,66757.0,2.961445]
[1729694752736,1.10378347,66758.0,66757.0,2.961445]
[1729694753932,1.05894449,66758.0,66757.0,2.961445]
[1729694754357,1.1037794,66758.0,66757.0,2.961445]
[1729694754586,1.05894449,66758.0,66757.0,2.961445]
[1729694754794,1.05894449,66758.0,66757.0,2.811648]
[1729694755031,1.05894449,66758.0,66757.0,2.961445]
[1729694757450,1.05894449,66758.0,66757.0,2.811648]
[1729694757660,1.05894449,66758.0,66757.0,2.956445]
[1729694758300,1.05894449,66758.0,66757.0,2.961445]
[1729694758944,1.05894449,66758.0,66757.0,2.811648]
[1729694759399,1.05894449,66758.0,66757.0,2.961445]
[1729694760467,1.05894449,66758.0,66757.0,2.956445]
[1729694760930,1.1037794,66758.0,66757.0,2.956445]
[1729694761168,1.1037737,66758.0,66757.0,2.956445]
[1729694761406,1.05894449,66758.0,66757.0,2.956445]
[1729694763643,1.1037737,66758.0,66757.0,2.956445]
[1729694764859,1.12619685,66758.0,66757.0,2.956445]
[1729694765071,1.10379976,66758.0,66757.0,2.956445]
[1729694765293,1.05894449,66758.0,66757.0,2.956445]
[1729694765561,1.12619685,66758.0,66757.0,2.956445]
[1729694765807,1.05894449,66758.0,66757.0,2.956445]
[1729694767585,1.12619685,66758.0,66757.0,2.806648]
[1729694768026,1.12619685,66758.0,66757.0,2.956445]
[1729694768236,1.12623831,66758.0,66757.0,2.956445]
[1729694769800,1.05894449,66758.0,66757.0,2.956445]
[1729694770436,1.12623284,66758.0,66757.0,2.956445]
[1729694772751,1.12623032,66758.0,66757.0,2.956445]
[1729694772961,1.12623032,66758.0,66757.0,2.806648]
[1729694773223,1.12622979,66758.0,66757.0,2.806648]
[1729694773454,1.48461367,66758.0,66757.0,2.801648]
[1729694773665,1.33481967,66758.0,66757.0,2.801648]
[1729694773887,1.44696184,66758.0,66757.0,2.801648]
[1729694775383,1.33481967,66758.0,66757.0,2.801648]
[1729694775632,1.44696184,66758.0,66757.0,2.801648]
[1729694775848,1.33667164,66758.0,66757.0,2.801648]
[1729694779604,1.22452947,66758.0,66757.0,2.801648]
[1729694779836,1.3366807,66758.0,66757.0,2.801648]
[1729694780306,1.22452947,66758.0,66757.0,2.801648]
[1729694781031,1.37432347,66758.0,66757.0,2.801648]
[1729694781276,1.96362129,66758.0,66757.0,2.801648]
[1729694781550,2.01541342,66758.0,66757.0,2.801648]
[1729694781779,2.16880535,66758.0,66757.0,2.801648]
[1729694782031,2.24927169,66758.0,66757.0,2.801648]
[1729694782313,2.25070362,66758.0,66757.0,2.34085378]
[1729694782584,2.37233061,66758.0,66757.0,2.34085378]
[1729694783074,2.48262081,66758.0,66757.0,2.34085378]
[1729694783560,1.97482844,66758.0,66757.0,2.34085378]
[1729694784950,2.37228863,66758.0,66757.0,2.34085378]
[1729694785172,1.97482844,66758.0,66757.0,2.34085378]
[1729694785697,2.08511864,66758.0,66757.0,2.34085378]
[1729694786415,1.95754011,66758.0,66757.0,1.25998198]
[1729694786857,2.00423394,66758.0,66757.0,1.20006398]
[1729694787133,1.91202034,66758.0,66757.0,1.14014598]
[1729694787328,1.91202034,66758.0,66757.0,1.11018698]
[1729694787610,1.86532651,66758.0,66757.0,1.11018698]
[1729694788494,1.81735448,66758.0,66757.0,1.11018698]
[1729694789141,1.81735448,66758.0,66757.0,0.58976057]
[1729694789807,1.98257805,66758.0,66757.0,0.58976057]
[1729694790724,1.98257805,66758.0,66757.0,0.55980157]
[1729694791338,1.98257805,66758.0,66757.0,0.49988357]
[1729694792009,0.161826,66744.0,66742.0,0.001648]
[1729694792224,1.05184512,66744.0,66742.0,0.001648]
[1729694792441,0.284828,66743.0,66742.0,0.001648]
[1729694792648,0.60055538,66743.0,66742.0,0.001648]
[1729694793958,0.6064215,66743.0,66742.0,0.001648]
[1729694794630,0.44119793,66743.0,66742.0,0.001648]
[1729694794868,0.59170174,66743.0,66742.0,0.001648]
[1729694796564,0.75661359,66743.0,66742.0,0.001648]
[1729694796772,0.8459871,66743.0,66742.0,0.001648]
[1729694797013,0.8519831,66743.0,66742.0,0.001648]
[1729694797220,0.76260959,66743.0,66742.0,0.001648]
[1729694798289,0.85191916,66743.0,66742.0,0.001648]
[1729694798956,0.76260959,66743.0,66742.0,0.001648]
[1729694801063,0.85183673,66743.0,66742.0,0.001648]
[1729694801301,0.76260959,66743.0,66742.0,0.001648]
[1729694802058,0.282853,66732.0,66731.0,0.17425637]
[1729694802283,0.47796277,66732.0,66731.0,0.17425637]
[1729694802765,0.43335681,66732.0,66731.0,0.17425637]
[1729694807451,0.43335681,66732.0,66731.0,0.001648]
[1729694807916,0.43535681,66732.0,66731.0,0.001648]
[1729694808152,0.62254584,66732.0,66731.0,0.001648]
[1729694808620,0.57795118,66732.0,66731.0,0.001648]
[1729694809554,0.58917481,66732.0,66731.0,0.001648]
[1729694809796,0.63376947,66732.0,66731.0,0.001648]
[1729694810755,0.63576947,66732.0,66731.0,0.001648]
[1729694811248,0.6337681,66732.0,66731.0,0.001648]
[1729694811732,0.6337681,66732.0,66731.0,0.101148]
[1729694812210,0.58917344,66732.0,66731.0,0.101148]
[1729694813203,0.58917344,66732.0,66731.0,0.29259071]
[1729694813204,0.31157907,66732.0,66731.0,0.29259071]
[1729694813723,0.31157907,66732.0,66731.0,0.182148]
[1729694813954,0.31657907,66732.0,66731.0,0.182148]
[1729694814437,0.31657907,66732.0,66731.0,0.35470078]
[1729694814932,0.31657907,66732.0,66731.0,0.50955578]
[1729694814933,0.01122226,66732.0,66731.0,0.50955578]
[1729694815455,0.01122226,66732.0,66731.0,0.35970078]
[1729694815929,0.31157907,66732.0,66731.0,0.182148]
[1729694816452,0.31657907,66732.0,66731.0,0.182148]
[1729694817399,0.32157907,66732.0,66731.0,0.182148]
[1729694817656,0.154862,66728.0,66727.0,0.001648]
[1729694817892,0.43190038,66728.0,66727.0,0.001648]
[1729694818154,0.44512264,66728.0,66727.0,0.001648]
[1729694818405,0.44812264,66728.0,66727.0,0.001648]
[1729694818679,0.4481107,66728.0,66727.0,0.001648]
[1729694820097,0.49273341,66728.0,66727.0,0.001648]
[1729694820287,0.4481107,66728.0,66727.0,0.001648]
[1729694820531,0.48773341,66728.0,66727.0,0.001648]
[1729694820755,0.36119884,66728.0,66727.0,0.078548]
[1729694821259,0.31657613,66728.0,66727.0,0.078548]
[1729694821744,0.36119884,66728.0,66727.0,0.078548]
[1729694822681,0.31657613,66728.0,66727.0,0.078548]
[1729694823623,0.38351019,66728.0,66727.0,0.078548]
[1729694823881,0.52119985,66728.0,66727.0,0.078548]
[1729694824138,0.52119985,66728.0,66727.0,0.07809017]
[1729694824650,0.6194555,66728.0,66727.0,0.07809017]
[1729694825367,0.48177247,66728.0,66727.0,0.07809017]
[1729694825597,0.57103069,66728.0,66727.0,0.07809017]
[1729694826618,0.47057495,66728.0,66727.0,0.07809017]
[1729694826848,0.4820199,66728.0,66727.0,0.07809017]
[1729694828767,0.48201844,66728.0,66727.0,0.07809017]
[1729694829193,0.63252225,66728.0,66727.0,0.07809017]
[1729694833047,0.48201844,66728.0,66727.0,0.07809017]
[1729694833291,0.48201844,66728.0,66727.0,0.07309017]
[1729694834651,0.47079911,66728.0,66727.0,0.07309017]
[1729694835130,0.48202137,66728.0,66727.0,0.07309017]
[1729694835384,0.154866,66726.0,66725.0,0.0925]
[1729694835605,0.47080311,66726.0,66725.0,0.0925]
[1729694836294,0.15711888,66724.0,66723.0,0.001648]
[1729694836537,0.47305599,66724.0,66723.0,0.001648]
[1729694836772,0.6235598,66724.0,66723.0,0.001648]
[1729694837838,0.6235598,66724.0,66721.0,0.083994]
[1729694837839,0.149875,66722.0,66721.0,0.080642]
[1729694838073,0.46581211,66722.0,66721.0,0.080642]
[1729694839408,0.47703799,66722.0,66721.0,0.080642]
[1729694839632,0.47703877,66722.0,66721.0,0.080642]
[1729694840999,0.62754258,66722.0,66721.0,0.080642]
[1729694841477,0.46210928,66722.0,66721.0,0.080642]
[1729694841716,0.62789493,66722.0,66721.0,0.082292]
[1729694842378,0.62789493,66722.0,66721.0,0.077292]
[1729694843573,0.62789493,66722.0,66721.0,0.00165]
[1729694843574,0.47739112,66722.0,66721.0,0.00165]
[1729694844070,0.47739093,66722.0,66721.0,0.00165]
[1729694844336,0.26684793,66722.0,66721.0,0.250127]
[1729694844588,0.01122647,66722.0,66721.0,0.250127]
[1729694845323,0.01122647,66722.0,66721.0,0.331527]
[1729694846095,0.01122647,66722.0,66721.0,0.336527]
[1729694846347,0.01122647,66722.0,66721.0,0.50908853]
[1729694847080,0.22630245,66728.0,66727.0,0.324664]
[1729694847332,0.22630245,66728.0,66727.0,0.49722553]
[1729694847569,0.23752166,66728.0,66727.0,0.49722553]
[1729694847804,0.01204421,66728.0,66727.0,0.49222553]
[1729694849033,0.07937094,66728.0,66727.0,0.49222553]
[1729694849253,0.01204421,66728.0,66727.0,0.1748]
[1729694849484,0.16190621,66728.0,66727.0,0.1748]
[1729694849668,0.31241002,66728.0,66727.0,0.1748]
[1729694849922,0.149875,66722.0,66721.0,0.00165]
[1729694850371,0.16109421,66722.0,66721.0,0.07775]
[1729694852387,0.16109421,66722.0,66721.0,0.07275]
[1729694852608,0.17686907,66722.0,66720.0,0.0945]
[1729694852820,0.01121921,66721.0,66716.0,0.005]
[1729694853026,0.01121921,66720.0,66717.0,0.149886]
[1729694853244,0.01121921,66719.0,66717.0,0.149886]
[1729694853452,0.01121921,66718.0,66715.0,0.092748]
[1729694853674,0.01121921,66717.0,66715.0,0.092748]
[1729694853885,0.01121921,66716.0,66715.0,0.092748]
[1729694854090,0.0112167,66716.0,66715.0,0.092748]
[1729694855353,0.0112167,66716.0,66715.0,0.320039]
[1729694856652,0.0112167,66716.0,66715.0,0.170148]
[1729694856885,0.0112167,66716.0,66715.0,0.320039]
[1729694857210,0.0112167,66716.0,66715.0,0.49260053]
[1729694857849,0.07856044,66716.0,66715.0,0.49260053]
[1729694858127,0.07856044,66716.0,66715.0,0.49760053]
[1729694858382,0.08979166,66718.0,66715.0,0.34770953]
[1729694858383,0.0112167,66717.0,66715.0,0.34770953]
[1729694858620,0.22547745,66719.0,66715.0,0.34770953]
[1729694858621,0.31526911,66719.0,66716.0,0.005]
[1729694858861,0.31526911,66719.0,66715.0,0.64249053]
[1729694858862,0.16572394,66718.0,66717.0,0.149886]
[1729694859115,0.16572394,66718.0,66716.0,0.449667]
[1729694859116,0.17694368,66718.0,66716.0,0.449667]
[1729694859388,0.26673534,66718.0,66715.0,2.975148]
[1729694859639,0.26673534,66717.0,66715.0,2.970148]
[1729694859879,0.32687117,66716.0,66715.0,2.970148]
[1729694860068,0.41666283,66716.0,66715.0,2.801648]
[1729694860311,0.32687117,66716.0,66715.0,2.801648]
[1729694860762,0.41653793,66716.0,66715.0,2.801648]
[1729694861475,0.41653039,66716.0,66715.0,2.801648]
[1729694862178,0.5720342,66716.0,66715.0,2.801648]
[1729694862395,0.61881845,66716.0,66715.0,2.801648]
[1729694864987,0.6188068,66716.0,66715.0,2.801648]
[1729694865670,0.57202255,66716.0,66715.0,2.801648]
[1729694865898,0.61875276,66716.0,66715.0,2.801648]
[1729694866351,0.61862438,66716.0,66715.0,2.801648]
[1729694866806,0.64662438,66716.0,66715.0,2.801648]
[1729694868364,0.64661542,66716.0,66715.0,2.801648]
[1729694878919,0.64662458,66716.0,66715.0,2.801648]
[1729694879426,0.59989437,66716.0,66715.0,2.801648]
[1729694879641,0.64661075,66716.0,66715.0,2.801648]
[1729694880616,0.64661075,66716.0,66715.0,2.878148]
[1729694880617,0.62361075,66716.0,66715.0,2.878148]
[1729694880855,0.32733861,66716.0,66715.0,2.878148]
[1729694881086,0.47722761,66716.0,66715.0,2.878148]
[1729694882076,0.6118072,66716.0,66715.0,2.878148]
[1729694882327,0.47722761,66716.0,66715.0,2.801648]
[1729694882571,0.76097987,66716.0,66715.0,2.801648]
[1729694882852,0.6961179,66716.0,66715.0,2.801648]
[1729694883095,0.97131777,66716.0,66715.0,2.19128759]
[1729694883350,0.97437853,66716.0,66715.0,2.13133159]
[1729694883610,0.80875202,66716.0,66715.0,2.13133159]
[1729694883866,0.80875202,66716.0,66715.0,2.0429006]
[1729694884630,5.85636503,66716.0,66715.0,2.0429006]
[1729694884891,6.08805665,66716.0,66715.0,2.0429006]
[1729694885117,6.07684836,66716.0,66715.0,2.0429006]
[1729694885348,6.08805471,66716.0,66715.0,2.0429006]
[1729694888472,6.08803976,66716.0,66715.0,2.0429006]
[1729694890275,6.08803976,66716.0,66715.0,2.0437246]
[1729694890516,1.20592076,66716.0,66715.0,2.0437246]
[1729694890738,0.97422914,66716.0,66715.0,2.0437246]
[1729694890953,6.08968776,66716.0,66715.0,2.0437246]
[1729694893250,1.20756876,66716.0,66715.0,2.0437246]
[1729694893489,0.97587714,66716.0,66715.0,2.0437246]
[1729694894657,0.86536914,66716.0,66715.0,2.0437246]
[1729694894877,0.84236914,66716.0,66715.0,2.0437246]
[1729694895098,0.99131325,66716.0,66715.0,2.0437246]
[1729694895371,0.78237714,66716.0,66715.0,2.0437246]
[1729694895594,0.78037714,66716.0,66715.0,2.0437246]
[1729694895829,0.77461348,66716.0,66715.0,2.0437246]
[1729694896055,0.91074321,66716.0,66715.0,2.0437246]
[1729694896536,0.77661348,66716.0,66715.0,2.0437246]
[1729694896982,0.93375037,66716.0,66715.0,2.0437246]
[1729694897449,0.79761348,66716.0,66715.0,2.0437246]
[1729694897674,0.79961348,66716.0,66715.0,2.0437246]
[1729694898789,0.79923604,66716.0,66715.0,2.0437246]
[1729694899015,0.78804464,66716.0,66715.0,2.0437246]
[1729694899506,0.79923896,66716.0,66715.0,2.0437246]
[1729694899730,0.79923969,66716.0,66715.0,2.0437246]
[1729694900817,0.79723969,66716.0,66715.0,2.0437246]
[1729694904411,0.79923969,66716.0,66715.0,2.0437246]
[1729694904653,0.95020341,66716.0,66715.0,2.0437246]
[1729694904881,0.79923969,66716.0,66715.0,2.0437246]
[1729694906329,0.79924439,66716.0,66715.0,2.0437246]
[1729694907457,0.79948512,66716.0,66715.0,2.0437246]
[1729694907695,0.79748512,66716.0,66715.0,2.0437246]
[1729694909560,0.79948512,66716.0,66715.0,2.0437246]
[1729694909972,0.79949564,66716.0,66715.0,2.0437246]